{"text_format":"1","workbook":"xlsx","n_sheets":5,"sheets":["1 Försättssida","2 Specifikation","3 Avtalstecknande","Admin","SysAdmin"],"not_rendered":{"charts":0,"images":2,"macros":1,"external_links":1,"defined_names":114,"comments":0,"pivot_tables":0},"unopened":[],"bounds":{"document_bytes":16777216,"sheet_cells":100000,"rows_first":2000,"rows_last":500,"rows_between":2000,"halvings":0,"cell_chars":16384,"cell_head_chars":4096},"cells_cut":0,"cells_raw":0,"read":"whole","date_system":"1900"}

{"sheet":"1 Försättssida","index":0,"n_rows":24,"n_cols":1,"rows_kept":24,"cut":false,"hidden":false,"merged":[]}
[]
[]
[]
[]
[]
[]
[]
[]
[]
[]
[]
["Avropsförfrågan - Förnyad konkurrensutsättning "]
["från Statens inköpscentrals ramavtal inom området "]
["Bemanningstjänster"]
[]
["23.3-4749-20"]
[]
[]
[]
[]
["Avropsblankett"]
[]
[{"$f":"MID(CELL(\"filename\",A1),FIND(\"[\",CELL(\"filename\",A1))+1,FIND(\"]\",CELL(\"filename\",A1))-FIND(\"[\",CELL(\"filename\",A1))-1)","v":"Avropsmall, Bemanningstjänster, 2024-03-27.xlsm"}]
[{"$f":"MID(A23,SEARCH(\"(\",A23)+1,SEARCH(\")\",A23)-SEARCH(\"(\",A23)-1)","v":{"$error":"#VALUE!"}}]

{"sheet":"2 Specifikation","index":1,"n_rows":195,"n_cols":34,"rows_kept":195,"cut":false,"hidden":false,"merged":[[85,7,85,9],[85,12,85,13],[85,16,85,23],[88,16,88,23],[94,7,94,9],[94,1,94,2],[94,3,94,4],[94,5,94,6],[91,16,91,23],[87,12,87,13],[87,16,87,23],[86,3,86,4],[86,5,86,6],[86,7,86,9],[86,12,86,13],[88,5,88,6],[88,7,88,9],[90,12,90,13],[88,12,88,13],[90,7,90,9],[89,7,89,9],[102,7,102,9],[97,1,97,2],[97,3,97,4],[97,5,97,6],[97,7,97,9],[88,1,88,2],[88,3,88,4],[86,1,86,2],[93,5,93,6],[90,5,90,6],[89,5,89,6],[87,3,87,4],[87,5,87,6],[87,7,87,9],[100,7,100,9],[99,7,99,9],[93,7,93,9],[93,1,93,2],[103,5,103,6],[103,7,103,9],[91,1,91,2],[91,3,91,4],[91,5,91,6],[91,7,91,9],[91,12,91,13],[98,1,98,2],[98,3,98,4],[98,5,98,6],[98,7,98,9],[98,12,98,13],[95,3,95,4],[95,12,95,13],[96,1,96,2],[96,3,96,4],[96,5,96,6],[96,7,96,9],[96,12,96,13],[95,5,95,6],[92,1,92,2],[92,3,92,4],[92,5,92,6],[101,7,101,9],[186,1,186,8],[82,3,82,4],[101,1,101,2],[106,1,106,2],[102,1,102,2],[159,1,159,8],[181,1,181,8],[100,3,100,4],[101,3,101,4],[143,1,143,8],[144,1,144,8],[103,3,103,4],[90,3,90,4],[161,1,161,8],[162,1,162,8],[156,1,156,8],[155,1,155,8],[148,1,148,8],[149,1,149,8],[150,1,150,8],[153,1,153,8],[165,1,165,8],[166,1,175,8],[178,1,178,8],[116,1,116,3],[90,1,90,2],[83,3,83,4],[89,3,89,4],[80,1,80,2],[78,11,79,13],[79,1,79,5],[67,1,67,9],[72,4,72,8],[100,1,100,2],[99,1,99,2],[102,3,102,4],[93,12,93,13],[99,12,99,13],[99,3,99,4],[93,3,93,4],[95,1,95,2],[82,7,82,9],[82,5,82,6],[102,5,102,6],[101,5,101,6],[100,5,100,6],[99,5,99,6],[87,1,87,2],[118,18,118,19],[115,20,115,21],[116,18,116,19],[129,1,129,13],[82,16,82,23],[81,12,81,13],[81,16,81,23],[83,12,83,13],[103,12,103,13],[103,16,103,23],[100,12,100,13],[100,16,100,23],[101,12,101,13],[102,12,102,13],[102,16,102,23],[83,1,83,2],[89,1,89,2],[84,1,84,2],[115,22,117,23],[113,17,114,17],[115,18,115,19],[113,16,114,16],[103,1,103,2],[115,11,115,12],[82,1,82,2],[72,1,72,3],[74,1,74,9],[76,1,76,3],[68,1,68,3],[69,1,69,8],[90,16,90,23],[61,23,61,24],[78,10,80,10],[81,3,81,4],[81,1,81,2],[83,16,83,23],[89,12,89,13],[89,16,89,23],[82,12,82,13],[83,5,83,6],[84,3,84,4],[84,5,84,6],[84,7,84,9],[83,7,83,9],[85,1,85,2],[85,3,85,4],[85,5,85,6],[77,1,77,9],[38,15,38,16],[39,15,39,20],[39,23,39,24],[40,23,40,24],[50,2,50,4],[51,5,51,10],[54,5,54,10],[50,23,50,24],[51,23,51,24],[52,23,52,24],[54,23,54,24],[40,5,40,10],[50,5,50,10],[41,5,41,10],[41,15,41,20],[40,21,40,22],[41,23,41,24],[42,23,42,24],[43,23,43,24],[44,23,44,24],[45,21,45,22],[52,21,52,22],[53,21,53,22],[54,21,54,22],[10,19,10,22],[9,7,9,8],[9,15,9,18],[9,19,9,22],[8,15,8,20],[11,15,11,18],[26,1,26,2],[10,1,10,3],[11,1,11,3],[14,18,14,20],[15,15,15,17],[8,1,8,6],[8,7,8,8],[25,1,25,2],[8,21,8,22],[9,1,9,3],[9,4,9,6],[16,4,16,8],[16,18,16,22],[16,15,16,17],[26,3,26,4],[12,19,12,20],[14,15,14,17],[10,15,10,18],[2,1,2,4],[2,15,2,17],[2,19,2,22],[3,1,4,8],[3,15,4,22],[7,1,7,6],[7,7,7,8],[7,15,7,20],[7,21,7,22],[5,1,5,8],[6,1,6,8],[194,19,194,22],[191,15,192,22],[188,15,188,22],[187,15,187,22],[190,15,190,22],[186,15,186,22],[153,15,153,18],[113,18,114,19],[118,20,118,21],[129,18,129,19],[136,20,136,21],[133,17,134,19],[130,20,130,21],[116,20,116,21],[135,18,135,19],[117,20,117,21],[132,20,132,21],[117,18,117,19],[184,15,185,22],[178,15,178,22],[179,15,179,22],[180,15,180,22],[181,15,181,22],[113,22,114,23],[28,1,28,2],[50,15,50,20],[29,3,29,4],[28,3,28,4],[31,1,31,2],[34,1,34,10],[35,1,35,10],[36,1,36,10],[37,1,37,10],[41,2,41,4],[31,3,31,4],[31,6,31,7],[39,2,39,4],[40,2,40,4],[29,1,29,2],[39,5,39,10],[45,2,45,4],[45,5,45,10],[45,15,45,20],[48,2,48,4],[48,5,48,10],[48,15,48,20],[38,1,38,5],[40,15,40,20],[11,19,11,20],[11,21,11,22],[13,7,13,8],[13,15,13,17],[13,18,13,20],[12,15,12,18],[14,7,14,8],[14,4,14,6],[23,15,23,22],[15,4,15,8],[15,18,15,22],[12,21,12,22],[13,21,13,22],[14,21,14,22],[23,1,23,8],[19,15,19,21],[21,15,21,21],[19,1,21,8],[10,4,10,6],[10,7,10,8],[16,1,16,3],[12,1,12,3],[13,1,13,3],[13,4,13,6],[12,7,12,8],[11,4,11,6],[11,7,11,8],[15,1,15,3],[14,1,14,3],[12,4,12,6],[26,6,26,8],[32,1,32,2],[32,3,32,4],[50,21,50,22],[51,15,51,20],[51,21,51,22],[25,3,25,4],[25,6,25,8],[32,6,32,7],[51,2,51,4],[39,21,39,22],[41,21,41,22],[42,2,42,4],[42,5,42,10],[42,15,42,20],[42,21,42,22],[43,2,43,4],[43,5,43,10],[43,15,43,20],[43,21,43,22],[44,2,44,4],[44,5,44,10],[44,15,44,20],[44,21,44,22],[179,1,179,8],[180,1,180,8],[154,1,154,8],[121,15,121,16],[121,17,121,18],[122,1,124,13],[147,1,147,8],[147,15,147,18],[143,23,183,27],[132,18,132,19],[160,1,160,8],[124,25,124,27],[159,15,159,18],[141,1,141,8],[129,20,129,21],[139,1,139,5],[135,20,135,21],[130,1,136,13],[141,15,141,18],[131,18,131,19],[142,1,142,8],[131,20,131,21],[123,17,124,18],[110,18,112,23],[114,11,114,12],[110,17,112,17],[110,15,112,16],[106,22,106,23],[106,17,106,18],[105,12,105,13],[106,12,106,13],[99,16,99,23],[113,20,114,21],[107,12,107,13],[101,16,101,23],[106,19,106,20],[45,23,45,24],[46,2,46,4],[46,5,46,10],[46,15,46,20],[46,21,46,22],[46,23,46,24],[47,2,47,4],[47,5,47,10],[47,15,47,20],[47,21,47,22],[47,23,47,24],[48,21,48,22],[48,23,48,24],[49,2,49,4],[49,5,49,10],[49,15,49,20],[49,21,49,22],[49,23,49,24],[55,23,55,24],[54,2,54,4],[53,2,53,4],[53,15,53,20],[53,5,53,10],[52,15,52,20],[52,2,52,4],[53,23,53,24],[55,5,55,10],[55,2,55,4],[54,15,54,20],[52,5,52,10],[55,15,55,20],[55,21,55,22],[81,7,81,9],[58,2,58,4],[58,5,58,10],[58,15,58,20],[58,21,58,22],[59,2,59,4],[56,5,56,10],[57,5,57,10],[59,5,59,10],[56,15,56,20],[56,21,56,22],[57,21,57,22],[57,15,57,20],[81,5,81,6],[63,1,63,5],[64,20,64,22],[59,15,59,20],[59,21,59,22],[56,23,56,24],[57,23,57,24],[59,23,59,24],[86,16,86,23],[98,16,98,23],[92,7,92,9],[92,12,92,13],[92,16,92,23],[94,12,94,13],[94,16,94,23],[93,16,93,23],[95,7,95,9],[97,12,97,13],[97,16,97,23],[67,11,70,13],[72,11,75,13],[95,16,95,23],[84,12,84,13],[84,16,84,23],[96,16,96,23],[70,1,70,9],[56,2,56,4],[57,2,57,4],[58,23,58,24]]}
[]
[null,null,null,null,null,null,null,null,null,null,null,null,null,null,{"$f":"\"Avrop nr: \"&E15","v":"Avrop nr: xxxx"},null,null,null,null,null,null,null,{"$f":"\"Avrop nr: \"&E15","v":"Avrop nr: xxxx"}]
[null,"Avropsförfrågan",null,null,null,null,null,null,null,null,null,null,null,null,null,"Avropssvar",null,null,null,{"$f":"IF(LarmStatus,\"Minst ett av de obligatoriska kraven är inte ifyllda eller besvarade med Nej\",\"\")","v":"Minst ett av de obligatoriska kraven är inte ifyllda eller besvarade med Nej"},null,null,null,null,null,null,null,null,null,null,null,null,null,{"$f":"OR(AH4:AH840)","v":true}]
[null,"Instruktion till avropande organisation: \nSpara ned blanketten på din dator.\nGulmarkerade rutor fylls i av avropare innan blanketten skickas.\n\nBlanketten skickas med e-post till antagna leverantörer inom aktuellt avropsområde.\nSe vidare \"Vägledning vid avrop\".",null,null,null,null,null,null,null,null,null,null,null,null,null,"Instruktion till leverantör:\nBlåmarkerade rutor fylls i av leverantören.\nLäs och kontrollera obligatoriska krav.\nReturnera blanketten med e-post till avropande organisation (oavsett Ja eller Nej)."]
[]
[null,"Steg 1 - Administrativa uppgifter"]
[null,"Uppgifter om avropande organisation",null,null,null,null,null,null,null,null,null,null,null,null,null,"Uppgifter om Ramavtalsleverantören"]
[null,"Myndighet/Organisation (namn)",null,null,null,null,null,"Organisationsnummer",null,null,null,null,null,null,null,"Ramavtalsleverantörens namn",null,null,null,null,null,"Organisationsnummer"]
[]
[null,"Postadress",null,null,"Postnummer",null,null,"Ort",null,null,null,null,null,null,null,"Kontaktperson",null,null,null,"E-post"]
[]
[null,"Avdelning, enhet etc",null,null,"Fakturaref.",null,null,"Mottagare för E-faktura",null,null,null,null,null,null,null,"Postadress",null,null,null,"Postnummer",null,"Ort"]
[]
[null,"Kontaktperson",null,null,"Referens/diarienr för avropet",null,null,"Ev. kundnummer",null,null,null,null,null,null,null,"Telefon",null,null,"Ramavtalsnummer",null,null,"Offertnummer el likn för detta avropssvar"]
[null,null,null,null,"xxxx"]
[null,"Telefon",null,null,"E-post",null,null,null,null,null,null,null,null,null,null,"Avropssvar lämnas Ja/Nej",null,null,"Om Nej, motivering\n(Information ska även skickas till statens inköpscentral)"]
[null,null,null,null,"     ",null,null,null,null,null,null,null,null,null,null,null,null,null,null,null,null,null,null,null,null,null,null,null,null,null,null,null,null,{"$f":"IF(AND(P17=0,P17<>\"Ja\"),TRUE,FALSE)","v":true}]
[]
[null,"Förnyad kontroll av leverantörskrav (ESPD)",null,null,null,null,null,null,"",null,null,null,null,null,null,"Leverantörskrav (ESPD) - Ramavtalsleverantörens intygande"]
[null,"Enligt 15 kap. 4 § LOU krävs en ny leverantörskontroll, bl.a. av kvalificeringskraven, vid avrop genom förnyad konkurrensutsättning från ramavtal. Denna kontrollskyldighet ansvarar Kammarkollegiet för genom att löpande genomföra leverantörsprövning under hela ramavtalsperioden. Ramavtalsleverantören behöver dock bekräfta tidigare inlämnade uppgifter i enlighet med frågor till höger.",null,null,null,null,null,null,null,null,null,null,null,null,null,"Är i ramavtalsupphandlingen lämnad egenförsäkran fortfarande korrekt? ",null,null,null,null,null,null,"Ja/Nej"]
[]
[null,null,null,null,null,null,null,null,null,null,null,null,null,null,null,"Är i ramavtalsupphandlingen ingivna bevis, såsom Sanningsförsäkran avseende uteslutningsgrunder, fortfarande aktuella? Leverantörer har ansvar för att säkerställa med sina åberopade företag, att de inte omfattas av någon uteslutningsgrund. Med \"åberopat företag\" avses specifikt en underleverantör som har åberopats i ramavtalsupphandlingen för att uppfylla krav på ekonomisk, teknisk och yrkesmässig kapacitet”.",null,null,null,null,null,null,"Ja/Nej"]
[null,"Information om avropet t ex syfte och omfattning",null,null,null,null,null,null,null,null,null,null,null,null,null,"Uppgifter om underleverantör/återförsäljare (om aktuellt)"]
[]
[null,null,"Obs att tidsfristen måste vara skälig med hänsyn till avropets karaktär."]
[null,"Sista datum för frågor",null,"Sista datum för \nsvar på frågor",null,null,"E-post för frågor (om annan än ovan)"]
[]
[]
[null,"Sista dag för avropssvar",null,"Avropssvarets giltighetstid"]
[]
[]
[null,"Kontraktets längd: antal timmar",null,"Förlängningsoption:\nAntal timmar",null,null,"Planerat startdatum för kontraktet"]
[]
[]
[null,"Ange kontorstjänster alt. IT-tjänster"]
[null,"Ange tjänster"]
[null,"Ange vilket geografisk område avropet avser"]
[null,"Välj geografiskt område"]
[null,"Steg 2 - Specifikation av tjänster",null,null,null,null,null,null,null,null,null,null,null,null,null,"Leverantörens svar"]
[null,"Tjänst nr","Välj i lista\nOBS! Varje tjänst kan väljas flera gånger.",null,null,"Specificera tjänster i fritext eller hänvisa till bilaga.\nAnge bilagans nummer!\nOm specifikation görs i en bilaga anges \"Antal\" till 1 för hela beställningen.\nVid flera bilagor, använd en rad per bilaga.\nSpecificera uppdragets omfattning tex start och slut-datum",null,null,null,null,null,"Specifikation i bilaga?","Antal\n(blir alltid 1 om bilaga)","Timmar/\nbilaga/\ntotalpris",null,"Vid behov specificera tjänster, annan information eller hänvisa till bilaga.",null,null,null,null,null,"Pris per timme / Totalpris \nexkl moms avrundat till heltal",null,"Pris totalt (timmar)"]
[null,"01.","Välj yrkesområde",null,null,null,null,null,null,null,null,false,null,null,null,null,null,null,null,null,null,null,null,{"$f":"IF(N41=\"Totalpris\",V41,IF(N41=\"Bilaga\",V41,IF(N41=\"\",\"\",IF(N41=\"Timmar\",M41*V41,IF(N41=\"Månader\",((M41*168)*V41),IF(N41=\"År\",(M41*2016)*V41))))))","v":""}]
[null,"02.",null,null,null,null,null,null,null,null,null,false,null,null,null,null,null,null,null,null,null,null,null,{"$f":"IF(N42=\"Totalpris\",V42,IF(N42=\"Bilaga\",V42,IF(N42=\"\",\"\",IF(N42=\"Timmar\",M42*V42,IF(N42=\"Månader\",((M42*168)*V42),IF(N42=\"År\",(M42*2016)*V42))))))","v":""}]
[null,"03.",null,null,null,null,null,null,null,null,null,false,null,null,null,null,null,null,null,null,null,null,null,""]
[null,"04.",null,null,null,null,null,null,null,null,null,false,null,null,null,null,null,null,null,null,null,null,null,""]
[null,"05.",null,null,null,null,null,null,null,null,null,false,null,null,null,null,null,null,null,null,null,null,null,""]
[null,"06.",null,null,null,null,null,null,null,null,null,false,null,null,null,null,null,null,null,null,null,null,null,""]
[null,"07.",null,null,null,null,null,null,null,null,null,false,null,null,null,null,null,null,null,null,null,null,null,""]
[null,"08.",null,null,null,null,null,null,null,null,null,false,null,null,null,null,null,null,null,null,null,null,null,""]
[null,"09.",null,null,null,null,null,null,null,null,null,false,null,null,null,null,null,null,null,null,null,null,null,""]
[null,"10.",null,null,null,null,null,null,null,null,null,false,null,null,null,null,null,null,null,null,null,null,null,""]
[null,"11.",null,null,null,null,null,null,null,null,null,false,null,null,null,null,null,null,null,null,null,null,null,""]
[null,"12.",null,null,null,null,null,null,null,null,null,false,null,null,null,null,null,null,null,null,null,null,null,""]
[null,"13.",null,null,null,null,null,null,null,null,null,false,null,null,null,null,null,null,null,null,null,null,null,""]
[null,"14.",null,null,null,null,null,null,null,null,null,false,null,null,null,null,null,null,null,null,null,null,null,""]
[null,"15.",null,null,null,null,null,null,null,null,null,false,null,null,null,null,null,null,null,null,null,null,null,""]
[null,"16.",null,null,null,null,null,null,null,null,null,false,null,null,null,null,null,null,null,null,null,null,null,""]
[null,"17.",null,null,null,null,null,null,null,null,null,false,null,null,null,null,null,null,null,null,null,null,null,""]
[null,"18.",null,null,null,null,null,null,null,null,null,false,null,null,null,null,null,null,null,null,null,null,null,""]
[null,"19.",null,null,null,null,null,null,null,null,null,false,null,null,null,null,null,null,null,null,null,null,null,""]
[null,"20.",null,null,null,null,null,null,null,null,null,false,null,null,null,null,null,null,null,null,null,null,null,""]
[]
[null,null,null,null,null,null,null,null,null,null,null,null,null,null,null,null,null,null,null,null,null,null,"Totalt pris (utvärderas): ",{"$f":"SUM(X41:Y60)","v":0}]
[]
[null,null,null,null,null,null,null,null,null,null,null,null,null,null,null,null,null,null,null,null,null,"OBS! Ej detsamma som kontraktssumma"]
[]
[null,"Steg 3 - Grund för tilldelning av kontrakt"]
[]
[null,"Ange tilldelningsgrund som kommer att tillämpas för att utse vinnande avropssvar.\nObs! Om kravspecifikationen innehåller bör-krav väljer Ni alternativ 2 nedan.",null,null,null,null,null,null,null,null,null,"Instruktion:\nInnan kravspecifikationen fylls i måste du ange tilldelningsgrund, dvs. om tilldelning ska ske genom lägsta pris (endast ska-krav) eller med bör-krav som viktas mot priset i utvärderingen. Kravspecifikationen nedan kommer att anpassas efter ditt val."]
[]
[null,"Tilldelning av kontrakt sker utifrån:"]
[null,"Ekonomiskt mest fördelaktiga (priset i relation till bör-krav)"]
[1]
[1,"Utvärderingsmodell",null,null,null,null,null,null,null,null,null,"Instruktion:\nObservera att de två föreslagna alternativen endast är exempel på vanligt förekommande utvärderings-modeller. Det är alltid den avropande organisationen som avgör om man vill använda sig av dem. ",null,null,null,null,null,null,null,null,null,null,null,null,null,null,{"$f":"DpDwnTDV","v":"Ekonomiskt mest fördelaktiga (priset i relation till bör-krav)"},{"$f":"VALUE(IF(ISNUMBER(SEARCH(\"2\",AA73))=TRUE,\"2\",\"1\"))","v":1}]
[1,null,null,null,null,null,null,null,null,null,null,null,null,null,null,null,null,null,null,null,null,null,null,null,null,null,{"$f":"DpDwnUtvddrop","v":"Alt. 2. Relativ viktning - summan av viktade poäng för pris och uppfyllda bör-krav"},{"$f":"\"Ut\"&IF(ISNUMBER(SEARCH(\"2\",AA74))=TRUE,\"2\",IF(ISNUMBER(SEARCH(\"3\",AA74))=TRUE,\"3\",IF(ISNUMBER(SEARCH(\"4\",AA74))=TRUE,\"4\")))","v":"Ut2"}]
[1,"Ange den utvärderingsmodell som kommer att tillämpas för att utse vinnande avropssvar. \n"]
[1]
[1,"Utvärdering av :"]
[1,"Alt. 2. Relativ viktning - summan av viktade poäng för pris och uppfyllda bör-krav"]
[]
[null,"Steg 4 - Kravspecifikation",null,null,null,null,null,null,null,null,null,null,null,null,null,"Kravuppfyllnad"]
[]
[null,"Välj tjänst (endast de som valts i steg 2 ovan är möjliga)\nOBS! Varje tjänst kan väljas flera gånger.",null,"Välj krav ur kravkatalog \nOBS! varje krav kan väljas flera gånger",null,"Välj underrubrik OBS! varje underrubrik kan väljas flera gånger",null,"Precisera krav i fritext eller hänvisa till bilaga\n\n",null,null,{"$f":"IF(LEFT(DpDwnUtvddrop,6)=\"Alt. 1\",\"Endast ska-krav\",IF(ISNUMBER(SEARCH(\"1\",B71)),\"Endast ska-krav\",\"Välj typ av krav\n(ska/bör)\"))","v":"Välj typ av krav\n(ska/bör)"},"Ange poäng-värde\n(vid bör-krav)","Ange prisavdrag från totalpriset (kr)\n(vid bör-krav)",null,null,"Uppfyller kravet?","Beskrivning av hur leverantören uppfyller kravet eller referera till bilaga"]
[null,"Välj Tjänst",null,null,null,null,null,null,null,null,null,null,null,null,null,null,null,null,null,null,null,null,null,null,null,null,{"$f":"IF(AND(K83=\"Bör-krav\",L83<=0),TRUE,FALSE)","v":false},{"$f":"IF(K83=\"Ska-krav\",TRUE,FALSE)","v":false},null,null,null,null,null,{"$f":"IF(AND(K83=\"Ska-krav\",P83<>\"Ja\"),TRUE,FALSE)","v":false}]
[null,"Välj Tjänst",null,null,null,null,null,null,null,null,null,null,null,null,null,null,null,null,null,null,null,null,null,null,null,null,{"$f":"IF(AND(K84=\"Bör-krav\",L84<=0),TRUE,FALSE)","v":false},{"$f":"IF(K84=\"Ska-krav\",TRUE,FALSE)","v":false},null,null,null,null,null,{"$f":"IF(AND(K84=\"Ska-krav\",P84<>\"Ja\"),TRUE,FALSE)","v":false}]
[null,"Välj Tjänst",null,null,null,null,null,null,null,null,null,null,null,null,null,null,null,null,null,null,null,null,null,null,null,null,false,false,null,null,null,null,null,false]
[null,"Välj Tjänst",null,null,null,null,null,null,null,null,null,null,null,null,null,null,null,null,null,null,null,null,null,null,null,null,false,false,null,null,null,null,null,false]
[null,"Välj Tjänst",null,null,null,null,null,null,null,null,null,null,null,null,null,null,null,null,null,null,null,null,null,null,null,null,false,false,null,null,null,null,null,false]
[null,"Välj Tjänst",null,null,null,null,null,null,null,null,null,null,null,null,null,null,null,null,null,null,null,null,null,null,null,null,false,false,null,null,null,null,null,false]
[null,"Välj Tjänst",null,null,null,null,null,null,null,null,null,null,null,null,null,null,null,null,null,null,null,null,null,null,null,null,false,false,null,null,null,null,null,false]
[null,"Välj Tjänst",null,null,null,null,null,null,null,null,null,null,null,null,null,null,null,null,null,null,null,null,null,null,null,null,false,false,null,null,null,null,null,false]
[null,"Välj Tjänst",null,null,null,null,null,null,null,null,null,null,null,null,null,null,null,null,null,null,null,null,null,null,null,null,false,false,null,null,null,null,null,false]
[null,"Välj Tjänst",null,null,null,null,null,null,null,null,null,null,null,null,null,null,null,null,null,null,null,null,null,null,null,null,false,false,null,null,null,null,null,false]
[null,"Välj Tjänst",null,null,null,null,null,null,null,null,null,null,null,null,null,null,null,null,null,null,null,null,null,null,null,null,false,false,null,null,null,null,null,false]
[null,"Välj Tjänst",null,null,null,null,null,null,null,null,null,null,null,null,null,null,null,null,null,null,null,null,null,null,null,null,false,false,null,null,null,null,null,false]
[null,"Välj Tjänst",null,null,null,null,null,null,null,null,null,null,null,null,null,null,null,null,null,null,null,null,null,null,null,null,false,false,null,null,null,null,null,false]
[null,"Välj Tjänst",null,null,null,null,null,null,null,null,null,null,null,null,null,null,null,null,null,null,null,null,null,null,null,null,false,false,null,null,null,null,null,false]
[null,"Välj Tjänst",null,null,null,null,null,null,null,null,null,null,null,null,null,null,null,null,null,null,null,null,null,null,null,null,false,false,null,null,null,null,null,false]
[null,"Välj Tjänst",null,null,null,null,null,null,null,null,null,null,null,null,null,null,null,null,null,null,null,null,null,null,null,null,false,false,null,null,null,null,null,false]
[null,"Välj Tjänst",null,null,null,null,null,null,null,null,null,null,null,null,null,null,null,null,null,null,null,null,null,null,null,null,false,false,null,null,null,null,null,false]
[null,"Välj Tjänst",null,null,null,null,null,null,null,null,null,null,null,null,null,null,null,null,null,null,null,null,null,null,null,null,false,false,null,null,null,null,null,false]
[null,"Välj Tjänst",null,null,null,null,null,null,null,null,null,null,null,null,null,null,null,null,null,null,null,null,null,null,null,null,false,false,null,null,null,null,null,false]
[null,"Välj Tjänst",null,null,null,null,null,null,null,null,null,null,null,null,null,null,null,null,null,null,null,null,null,null,null,null,false,false,null,null,null,null,null,false]
[null,"Välj Tjänst",null,null,null,null,null,null,null,null,null,null,null,null,null,null,null,null,null,null,null,null,null,null,null,null,false,false,null,null,null,null,null,false]
[null,"Välj Tjänst",null,null,null,null,null,null,null,null,null,null,null,null,null,null,null,null,null,null,null,null,null,null,null,null,false,false,null,null,null,null,null,false]
[1]
[1,null,null,null,null,null,null,null,null,null,null,"Max poäng för uppfyllda bör-krav","Max prisavdrag för uppfyllda bör-krav"]
[1,null,null,null,null,null,null,null,null,null,null,{"$f":"SUM(L83:L104)","v":0},{"$f":"SUM(M83:M104)","v":0},null,null,"Total erhållen poängsumma: ",{"$f":"SUMIF(P83:P104,\"Ja\",L83:L104)","v":0},null,null,"Totalt erhållet prisavdrag:",null,{"$f":"SUMIF(P83:P104,\"Ja\",M83:M104)","v":0}]
[]
[]
[]
["Ut2","Alt. 2. Summan av viktade poäng för pris och uppfyllda bör-krav, högsta slutsumma vinner.",null,null,null,null,null,null,null,null,null,null,null,null,null,"Sammanställning för detta avropssvar",null,"Fyll i det gula fältet efter att samtliga avropssvar inkommit!","När det gula fältet är ifyllt sker en automatisk poängberäkning. Lägst pris tilldelas maxpoäng (100) medan övriga priser tilldelas poäng i förhållande till det lägsta priset. Poängsumman för uppfyllda bör-krav multipliceras med angiven viktning och en slutlig poängsumma för detta avropssvar kommer att framgå av fältet längst ned. Denna slutliga poängsumma ligger till grund för tilldelningsbeslutet."]
["Ut2","Priset jämförs mellan avropssvaren. Poäng för uppfyllda bör-krav jämförs med möjlig maxpoäng. "]
["Ut2","Tilldelningskriterier"]
["Ut2","Ange kriterievikt för pris respektive bör-krav i tabellen nedan",null,null,null,null,null,null,null,"Viktning %",null,null,null,null,null,null,"Viktning","Lägsta inkomna totalpris","Erhållen poäng för totalpris",null,"Viktade poäng per kriterium",null,"Slutlig poängsumma för detta avropssvar\n(utvärderas)"]
["Ut2","Pris",null,null,null,null,null,null,"Utvärdering av det totala sammanräknade priset: ",1,null,null,null,null,null,"Totalpris"]
["Ut2","Utvärderingskrav \n(bör-krav)",null,null,null,null,null,null,"Utvärdering av ställda bör-krav på avropade tjänster: ",0,null,null,null,null,null,{"$f":"X62","v":0},{"$f":"J115","v":1},null,{"$f":"IFERROR(R116/P116*100,0)","v":0},null,{"$f":"IFERROR(S116*Q116,\"\")","v":0},null,{"$f":"IFERROR(SUM(U116+U118),\"\")","v":""}]
["Ut2","Summa kriterievikt:",null,null,null,null,null,null,"(ska alltid summera till 100 %)",{"$f":"J116+J115","v":1},null,null,null,null,null,"Poängsumma för uppfyllda bör-krav"]
["Ut2",null,null,null,null,null,null,null,null,null,null,null,null,null,null,{"$f":"Q107","v":0},{"$f":"J116","v":0},null,null,null,{"$f":"IFERROR(((P118/L107)*100)*Q118,\"\")","v":""}]
["Ut1"]
["Ut1"]
[]
["Ut3","Alt. 3. Prisavdrag för uppfyllda bör-krav, lägsta utvärderingskostnad vinner. ",null,null,null,null,null,null,null,null,null,null,null,null,null,"Prisavdrag för uppfyllda bör-krav. ",null,"Summa utvärderingskostnad för detta avropssvar"]
["Ut3","Det erhållna prisavdraget för uppfyllda utvärderingskrav (bör-krav) dras ifrån det totala priset för avropade tjänster. Resultatet blir en utvärderingskostnad som ligger till grund för tilldelningsbeslutet.",null,null,null,null,null,null,null,null,null,null,null,null,null,{"$f":"V107","v":0},null,{"$f":"X62-P123","v":0}]
["Ut3",null,null,null,null,null,null,null,null,null,null,null,null,null,null,null,null,"OBS! Ej detsamma som kontraktssumma"]
["Ut3"]
["Ut2"]
[]
["Ut4","Alt. 4. Annan utvärderingsmodell (än de ovan föreslagna)"]
["Ut3"]
["Ut4","Avropande organisations beskrivning av den utvärderingsmodell som kommer att tillämpas (eller hänvisning till bilaga)"]
["Ut4"]
["Ut4"]
["Ut4"]
["Ut4"]
["Ut4"]
["Ut4"]
["Ut3"]
[]
[]
[null,"Steg 5 - Övriga uppgifter"]
[null,"Leveranstid"]
[null,"Ange ev leveranstid/er för tjänsterna"]
[]
[]
[]
[]
[null,"Leveransvillkor (framgår av ramavtalets allmänna villkor)"]
[null,"Ev. precisering av leveransvillkor"]
[]
[]
[]
[]
[null,"Adress (om annan än ovan)"]
[null,"Ange ev adress för uppdraget/uppdragen"]
[]
[]
[]
[]
[null,"Fakturaadress (om annan än ovan)"]
[null,"Ange ev fakturaadress/erna"]
[]
[]
[]
[]
[null,"Övrig information"]
[null,"Ange övriga specifika förutsättningar (tex ev budgetrestriktioner), förhållanden eller önskemål som kan vara viktiga för leverantören och som inte framgår på annan plats i dokumentet."]
[]
[]
[]
[]
[]
[]
[]
[]
[]
[]
[]
[null,"Bilagor från avropande organisation (kontraktshandlingar framgår av flik 3)",null,null,null,null,null,null,null,null,null,null,null,null,null,"Bilagor från leverantören"]
[null,"Specificera ev. bilagor som medföljer denna avropsförfrågan",null,null,null,null,null,null,null,null,null,null,null,null,null,"Specificera ev. bilagor som medföljer detta avropssvar"]
[]
[]
[]
[]
[]
[null,null,null,null,null,null,null,null,null,null,null,null,null,null,null,"Leverantören har lämnat begärda prisuppgifter som gäller för offererade tjänster enligt ställda krav samt accepterar i övrigt kraven i avropsförfrågan och är införstådd med att samtliga lämnade uppgifter i avropssvaret är bindande\n"]
[]
[null,"OBS! Spara inte blanketten i PDF-format. Då kan inte leverantörerna fylla i den. Lås blanketten med \"låsknappen\" nedan innan ni skickar blanketten till leverantörerna.",null,null,null,null,null,null,null,null,null,null,null,null,null,{"$f":"\"Leverantören intygar att avropssvaret är giltigt minst den tid som avropande organisation angett ovan. \"&CHAR(10)&\"(\"&TEXT(D30,\"ÅÅÅÅ-MM-DD\")&\")\"","v":"Leverantören intygar att avropssvaret är giltigt minst den tid som avropande organisation angett ovan. \n(1900-01-00)"}]
[null,null,null,null,null,null,null,null,null,null,null,null,null,null,null,"Ort, datum"]
[null,null,null,null,null,null,null,null,null,null,null,null,null,null,null,null,null,null,null,null,null,null,null,null,null,null,null,null,null,null,null,null,null,{"$f":"IF(P189=0,TRUE,FALSE)","v":true}]
[]
[null,null,null,null,null,null,null,null,null,null,null,null,null,null,null,"Namn, befattning (behörig företrädare för leverantören)"]
[]
[null,null,null,null,null,null,null,null,null,null,null,null,null,null,null,null,null,null,null,null,null,null,null,null,null,null,null,null,null,null,null,null,null,{"$f":"IF(P192=0,TRUE,FALSE)","v":true}]
[]
[null,null,null,null,null,null,null,null,null,null,null,null,null,null,null,null,null,null,null,{"$f":"IF(LarmStatus,\"Minst ett av de obligatoriska kraven är inte ifyllda eller besvarde med Nej\",\"\")","v":"Minst ett av de obligatoriska kraven är inte ifyllda eller besvarde med Nej"}]

{"sheet":"3 Avtalstecknande","index":2,"n_rows":40,"n_cols":4,"rows_kept":40,"cut":false,"hidden":false,"merged":[[5,1,5,3],[41,1,41,3],[42,1,42,3],[43,1,43,3],[7,1,7,3],[9,1,9,3],[11,1,11,3],[14,1,14,3],[15,1,15,3],[44,1,44,3],[22,1,22,3],[40,1,40,3],[17,1,17,3],[18,1,19,3]]}
[null,null,null,{"$f":"\"Avrop nr: \"&'2 Specifikation'!E15","v":"Avrop nr: xxxx"}]
[]
[]
[]
[null,"Kontrakt"]
[null,{"$f":"\"Detta kontrakt reglerar avrop från ramavtalsområde \"&'1 Försättssida'!A14&\", \"&'1 Försättssida'!A16","v":"Detta kontrakt reglerar avrop från ramavtalsområde Bemanningstjänster, 23.3-4749-20"}]
[null,"Kontraktets omfattning"]
[null,"Leveransens omfattning och villkor framgår av Kontraktet med tillhörande bilagor samt Ramavtalet. Om handlingarna innehåller motstridiga uppgifter ska handlingarna gälla i nedan nämnd ordning om inte omständigheterna uppenbarligen föranleder annat."]
[null,"1. Skriftliga ändringar och tillägg till Kontrakt"]
[null,"2. Kontrakt med bilagor, inkl. Allmänna villkor"]
[null,"3. Eventuellt kompletterande Avropsförfrågan"]
[null,"4. Avropsförfrågan med bilagor "]
[null,"5. Eventuella tillåtna kompletteringar av Avropssvar"]
[null,"6. Avropssvar med bilagor"]
[]
[null,"Innehåller leverantörens avropssvar uppgifter som inte efterfrågats i avropsblanketten är dessa uppgifter giltiga endast om en skriftlig överenskommelse träffas särskilt angående detta. Hänvisning till leverantörens egna allmänna villkor eller motsvarande är endast giltiga om en särskild överenskommelse avseende detta tecknas."]
[]
[null,"Särskilda kontraktsvillkor, säkerhetsskyddsavtal etc. (alternativt enl separat bilaga) Se Allmänna villkor för tillåtna kompletteringar! "]
[]
[]
[]
[null,"Underskrift"]
[null,"Underskriften avser ett kontraktstecknande. Efter undertecknande av bägge parter utgör denna blankett tillsammans med ramavtalets villkor enligt ovan ett kontrakt mellan parterna.\n\nDetta kontrakt har upprättats i två exemplar varav parterna tagit var sitt."]
[]
[null,"Avropande organisation",null,"Leverantör"]
[null,{"$f":"'2 Specifikation'!B9","v":0},null,{"$f":"'2 Specifikation'!P9","v":0}]
[null,"Org.nr.",null,"Org.nr."]
[null,{"$f":"'2 Specifikation'!H9","v":0},null,{"$f":"'2 Specifikation'!V9","v":0}]
[]
[null,"Kontrakstid"]
[]
[]
[null,"Ort, datum",null,"Ort, datum"]
[]
[]
[null,"Namn, befattning \n(behörig företrädare för avropande organisation)",null,"Namn, befattning \n(behörig företrädare för leverantören)"]
[]
[]
[]
[null,"Eventuella bilagor till kontraktet"]

{"sheet":"Admin","index":3,"n_rows":127,"n_cols":26,"rows_kept":127,"cut":false,"hidden":true,"merged":[]}
[null,null,null,null,null,null,null,null,null,"ResVarTja"]
[null,null,null,{"$f":"C5","v":"Kontorstjänster"},{"$f":"C6","v":"IT-tjänster"},{"$f":"C7","v":0},{"$f":"C8","v":0},{"$f":"C9","v":0},{"$f":"C10","v":0},{"$f":"USRDelområde","v":"Ange tjänster"}]
[null,null,"TblDelområde","Välj område/län",{"$f":"$D$3","v":"Välj område/län"},{"$f":"$D$3","v":"Välj område/län"},{"$f":"$D$3","v":"Välj område/län"},{"$f":"$D$3","v":"Välj område/län"},{"$f":"$D$3","v":"Välj område/län"},{"$f":"IFERROR(IF(INDEX(D3:E3,MATCH(J$2,D$2:E$2,0))=0,\"\",INDEX(D3:E3,MATCH(J$2,D$2:E$2,0))),\"\")","v":""},null,null,"TblGeo"]
[null,null,"Ange tjänster","Blekinge län","Övre Sverige (Norrbotten, Västerbotten, Västernorrland, Jämtland, Gävleborg och Dalarna)",null,null,null,null,{"$f":"IFERROR(IF(INDEX(D4:E4,MATCH(J$2,D$2:E$2,0))=0,\"\",INDEX(D4:E4,MATCH(J$2,D$2:E$2,0))),\"\")","v":""},null,null,"Välj geografiskt område"]
[null,null,"Kontorstjänster","Dalarnas län","Mellersta Sverige (Uppsala, Västmanland, Södermanland, Östergötland, Örebro, Värmland, Stockholm och Gotland)",null,null,null,null,"",null,null,"Stockholm"]
[null,null,"IT-tjänster","Gotlands län","Nedre Sverige (Västra Götaland, Jönköping, Kronoberg, Kalmar, Blekinge, Skåne och Halland)",null,null,null,null,"",null,null,"Östra Mellansverige"]
[null,null,null,"Gävleborgs län",null,null,null,null,null,"",null,null,"Småland med öarna"]
[null,null,null,"Hallands län",null,null,null,null,null,"",null,null,"Sydsverige"]
[null,null,null,"Jämtlands län",null,null,null,null,null,"",null,null,"Västsverige"]
[null,null,null,"Jönköpings län",null,null,null,null,null,"",null,null,"Norra Mellansverige"]
[null,null,null,"Kalmar län",null,null,null,null,null,"",null,null,"Mellersta Norrland"]
[null,null,null,"Kronobergs län",null,null,null,null,null,"",null,null,"Övre Norrland"]
[null,null,null,"Norrbottens län",null,null,null,null,null,""]
[null,null,null,"Skåne län",null,null,null,null,null,""]
[null,null,null,"Stockholms län",null,null,null,null,null,""]
[null,null,null,"Södermanlands län",null,null,null,null,null,""]
[null,null,null,"Uppsala län",null,null,null,null,null,""]
[null,null,null,"Värmlands län",null,null,null,null,null,""]
[null,null,null,"Västerbottens län",null,null,null,null,null,""]
[null,null,null,"Västernorrlands län",null,null,null,null,null,""]
[null,null,null,"Västmanlands län",null,null,null,null,null,""]
[null,null,null,"Västra Götalands län",null,null,null,null,null,""]
[null,null,null,"Örebro län",null,null,null,null,null,""]
[null,null,null,"Östergötlands län",null,null,null,null,null,""]
[]
[]
[null,null,null,null,null,null,null,null,null,"ResOpt"]
[null,null,null,"Välj yrkesområde","Välj yrkesområde",null,null,null,null,{"$f":"IFERROR(INDEX(D28:I28,MATCH(J$2,D$2:I$2,0)),\"\")","v":""}]
[null,null,null,"Administratör 1","Helpdesk 1",null,null,null,null,{"$f":"IFERROR(IF(INDEX(D29:E29,MATCH(J$2,D$2:E$2,0))=0,\"\",INDEX(D29:E29,MATCH(J$2,D$2:E$2,0))),\"\")","v":""}]
[null,null,null,"Administratör 2","Helpdesk 2",null,null,null,null,""]
[null,null,null,"Administratör 3","IT-Tekniker 1",null,null,null,null,""]
[null,null,null,"Arkivarie","IT-Tekniker 2",null,null,null,null,{"$f":"IFERROR(IF(INDEX(D32:E32,MATCH(J$2,D$2:E$2,0))=0,\"\",INDEX(D32:E32,MATCH(J$2,D$2:E$2,0))),\"\")","v":""}]
[null,null,null,"Controler 1","Hybrid",null,null,null,null,""]
[null,null,null,"Controler 2","Interimschef",null,null,null,null,""]
[null,null,null,"Ekonomiassistent 1",null,null,null,null,null,""]
[null,null,null,"Ekonomiassistent 2",null,null,null,null,null,""]
[null,null,null,"Handläggare 1",null,null,null,null,null,""]
[null,null,null,"Handläggare 2",null,null,null,null,null,""]
[null,null,null,"Handläggare 3",null,null,null,null,null,""]
[null,null,null,"Hybrid",null,null,null,null,null,""]
[null,null,null,"Inköpare",null,null,null,null,null,""]
[null,null,null,"Interimschef",null,null,null,null,null,""]
[null,null,null,"Internservice 1",null,null,null,null,null,""]
[null,null,null,"Internservice 2",null,null,null,null,null,""]
[null,null,null,"Jurist 1",null,null,null,null,null,""]
[null,null,null,"Jurist 2",null,null,null,null,null,""]
[null,null,null,"Kommunikatör",null,null,null,null,null,""]
[null,null,null,"Löneadministratör 1",null,null,null,null,null,""]
[null,null,null,"Löneadministratör 2",null,null,null,null,null,""]
[null,null,null,"Personaladministratör 1",null,null,null,null,null,""]
[null,null,null,"Personaladministratör 2",null,null,null,null,null,""]
[null,null,null,"Projektledare",null,null,null,null,null,""]
[null,null,null,"Receptionist / Växeltelefonist",null,null,null,null,null,""]
[null,null,null,"Redovisningsekonom 1",null,null,null,null,null,{"$f":"IFERROR(IF(INDEX(D54:E54,MATCH(J$2,D$2:E$2,0))=0,\"\",INDEX(D54:E54,MATCH(J$2,D$2:E$2,0))),\"\")","v":""}]
[null,null,null,"Redovisningsekonom 2",null,null,null,null,null,""]
[null,null,null,"Registrator",null,null,null,null,null,""]
[null,null,null,"Upphandlare 1",null,null,null,null,null,""]
[null,null,null,"Upphandlare 2",null,null,null,null,null,""]
[]
[null,null,null,null,null,null,null,null,null,"Region"]
[null,null,null,"TblGrundTilldeln",null,"Tbl krav",null,"TblEnhet",null,"Multiregionalt"]
[null,null,null,"Välj grund för tilldelning…..",null,"Välj krav",null,"Timmar",null,"Blekinge län"]
[null,null,null,null,null,"Krav 1",null,"Bilaga",null,"Dalarnas län"]
[null,null,null,"Alt. 2. Ekonomiskt mest fördelaktiga (priset i relation till bör-krav)",null,"Krav 2",null,"Totalpris",null,"Gotlands län"]
[null,null,null,null,null,"Krav 3",null,null,null,"Gävleborgs län"]
[null,null,null,"TblUtVrd",null,"Krav 4",null,null,null,"Hallands län"]
[null,null,null,"Välj utvärdering…..",null,"Krav 5",null,null,null,"Jämtlands län"]
[null,null,null,"Alt. 1. Lägsta pris (endast ska-krav och pris)",null,"Krav 6",null,null,null,"Jönköpings län"]
[null,null,null,"Alt. 2. Relativ viktning - summan av viktade poäng för pris och uppfyllda bör-krav",null,"Se bilaga",null,null,null,"Kalmars län"]
[null,null,null,"Alt. 3. Mervärdesmodell - prisavdrag för uppfyllda bör-krav",null,null,null,null,null,"Kronobergs län"]
[null,null,null,"Alt. 4. Annan utvärderingsmodell",null,null,null,null,null,"Norrbottens län"]
[null,null,null,null,null,null,null,null,null,"Skånes län"]
[null,null,null,null,null,null,null,null,null,"Stockholms län"]
[null,null,null,null,null,null,null,null,null,"Södermanlands län"]
[null,null,null,null,null,null,null,null,null,"Uppsala län"]
[null,null,null,null,null,null,null,null,null,"Värmlands län"]
[null,null,null,null,null,null,null,null,null,"Västerbottens län"]
[null,null,null,null,null,null,null,null,null,"Västernorrlands län"]
[null,null,null,null,null,null,null,null,null,"Västmanlands län"]
[null,null,null,null,null,null,null,null,null,"Västra Götalands län"]
[null,null,null,null,null,null,null,null,null,"Örebro län"]
[null,null,null,null,null,null,null,null,null,"Östergötlands lön"]
[]
[null,null,"TblLeverantörer"]
[null,null,"Juridiskt Namn","Förvaltningens avtalsnummer ","Organisations-nummer","Adress","Postnummer","Postadress","Telefon Växel","Telefon kundtjänst","Hemsida","Kontaktperson ","Telefon","E-post kontaktperson","Befattning Kontaktperson","Fax","E-post Gruppbrevlåda"]
[]
[null,null,{"$f":"\"Välj \"&C85","v":"Välj Juridiskt Namn"},{"$f":"D85","v":"Förvaltningens avtalsnummer "},"Organisations-nummer","Adress","Postnummer","Postadress","Telefon Växel","Telefon kundtjänst","Hemsida","Kontaktperson ","Telefon","E-post kontaktperson","Befattning Kontaktperson","Fax","E-post Gruppbrevlåda"]
[null,null,"Välj Juridiskt Namn 2","Förvaltningens avtalsnummer  2","Organisations-nummer 2","Adress 2","Postnummer 2","Postadress 2","Telefon Växel 2","Telefon kundtjänst 2","Hemsida 2","Kontaktperson  2","Telefon 2","E-post kontaktperson 2","Befattning Kontaktperson 2","Fax 2","E-post Gruppbrevlåda 2"]
[]
[]
[]
[]
[]
[]
[]
[]
[]
[]
[]
[]
[]
[]
[]
[]
[null,null,"TblSpecTjnstr",null,"TblKrv2",{"$f":"E106","v":"Välj krav"},{"$f":"E107","v":"Pris"},{"$f":"E108","v":"Tillgänglighet"},{"$f":"E109","v":"Rekryteringsprocesser"},{"$f":"E110","v":"Konsultens erfarenhet"},{"$f":"E111","v":"Tidigare uppdrag"},{"$f":"E112","v":"Statistik"},{"$f":"E113","v":"Personalvård"}]
[null,null,"Välj Tjänst",null,"Välj krav"]
[null,null,{"$f":"IF('2 Specifikation'!C41=\"\",\"\",'2 Specifikation'!B41&\" - \"&'2 Specifikation'!C41)","v":"01. - Välj yrkesområde"},null,"Pris",null,"Totalpris","Leveranstid","Matchning av enskilt uppdrag","Utbildning","X antal uppdrag på viss specificerad längd och av liknande karaktär",{"$f":"E112","v":"Statistik"},{"$f":"E113","v":"Personalvård"}]
[null,null,{"$f":"IF('2 Specifikation'!C42=\"\",\"\",'2 Specifikation'!B42&\" - \"&'2 Specifikation'!C42)","v":""},null,"Tillgänglighet",null,"Timpris","Resurser","Beskrivning","Kompetens","Referensuppdrag","Annan","Annan"]
[null,null,{"$f":"IF('2 Specifikation'!C43=\"\",\"\",'2 Specifikation'!B43&\" - \"&'2 Specifikation'!C43)","v":""},null,"Rekryteringsprocesser",null,null,"Annan","Annan","Antal år i yrket","Annan"]
[null,null,{"$f":"IF('2 Specifikation'!C44=\"\",\"\",'2 Specifikation'!B44&\" - \"&'2 Specifikation'!C44)","v":""},null,"Konsultens erfarenhet",null,null,null,null,"Arbetslivserfarenhet"]
[null,null,{"$f":"IF('2 Specifikation'!C45=\"\",\"\",'2 Specifikation'!B45&\" - \"&'2 Specifikation'!C45)","v":""},null,"Tidigare uppdrag",null,null,null,null,"Intervju"]
[null,null,{"$f":"IF('2 Specifikation'!C46=\"\",\"\",'2 Specifikation'!B46&\" - \"&'2 Specifikation'!C46)","v":""},null,"Statistik",null,null,null,null,"Systemverktyg"]
[null,null,{"$f":"IF('2 Specifikation'!C47=\"\",\"\",'2 Specifikation'!B47&\" - \"&'2 Specifikation'!C47)","v":""},null,"Personalvård",null,null,null,null,"Programverktyg/programvaror"]
[null,null,{"$f":"IF('2 Specifikation'!C48=\"\",\"\",'2 Specifikation'!B48&\" - \"&'2 Specifikation'!C48)","v":""},null,null,null,null,null,null,"Spetskunskap"]
[null,null,{"$f":"IF('2 Specifikation'!C49=\"\",\"\",'2 Specifikation'!B49&\" - \"&'2 Specifikation'!C49)","v":""},null,null,null,null,null,null,"Annan"]
[null,null,{"$f":"IF('2 Specifikation'!C50=\"\",\"\",'2 Specifikation'!B50&\" - \"&'2 Specifikation'!C50)","v":""},null,"TblKrvRes1","TblKrvRes2","TblKrvRes3","TblKrvRes4","TblKrvRes5","TblKrvRes6","TblKrvRes7","TblKrvRes8","TblKrvRes9","TblKrvRes10","TblKrvRes11","TblKrvRes12","TblKrvRes13","TblKrvRes14","TblKrvRes15","TblKrvRes16","TblKrvRes17","TblKrvRes18","TblKrvRes19","TblKrvRes20","TblKrvRes21","TblKrvRes22"]
[null,null,{"$f":"IF('2 Specifikation'!C51=\"\",\"\",'2 Specifikation'!B51&\" - \"&'2 Specifikation'!C51)","v":""},null,{"$f":"IF(KrvSpc1=\"\",\"\",KrvSpc1)","v":""},{"$f":"IF(KrvSpc2=\"\",\"\",KrvSpc2)","v":""},{"$f":"IF(KrvSpc3=\"\",\"\",KrvSpc3)","v":""},{"$f":"IF(KrvSpc4=\"\",\"\",KrvSpc4)","v":""},{"$f":"IF(KrvSpc5=\"\",\"\",KrvSpc5)","v":""},{"$f":"IF(KrvSpc6=\"\",\"\",KrvSpc6)","v":""},{"$f":"IF(KrvSpc7=\"\",\"\",KrvSpc7)","v":""},{"$f":"IF(KrvSpc8=\"\",\"\",KrvSpc8)","v":""},{"$f":"IF(KrvSpc9=\"\",\"\",KrvSpc9)","v":""},{"$f":"IF(KrvSpc10=\"\",\"\",KrvSpc10)","v":""},{"$f":"IF(KrvSpc11=\"\",\"\",KrvSpc11)","v":""},{"$f":"IF(KrvSpc12=\"\",\"\",KrvSpc12)","v":""},{"$f":"IF(KrvSpc13=\"\",\"\",KrvSpc13)","v":""},{"$f":"IF(KrvSpc14=\"\",\"\",KrvSpc14)","v":""},{"$f":"IF(KrvSpc15=\"\",\"\",KrvSpc15)","v":""},{"$f":"IF(KrvSpc16=\"\",\"\",KrvSpc16)","v":""},{"$f":"IF(KrvSpc17=\"\",\"\",KrvSpc17)","v":""},{"$f":"IF(KrvSpc18=\"\",\"\",KrvSpc18)","v":""},{"$f":"IF(KrvSpc19=\"\",\"\",KrvSpc19)","v":""},{"$f":"IF(KrvSpc20=\"\",\"\",KrvSpc20)","v":""},{"$f":"IF(KrvSpc21=\"\",\"\",KrvSpc21)","v":""},{"$f":"IF(KrvSpc22=\"\",\"\",KrvSpc22)","v":""}]
[null,null,{"$f":"IF('2 Specifikation'!C52=\"\",\"\",'2 Specifikation'!B52&\" - \"&'2 Specifikation'!C52)","v":""},null,{"$f":"IFERROR(IF(INDEX($F106:$M106,MATCH(E$117,$F$105:$M$105,0))=0,\"\",INDEX($F106:$M106,MATCH(E$117,$F$105:$M$105,0))),\"\")","v":""},{"$f":"IFERROR(IF(INDEX($F106:$M106,MATCH(F$117,$F$105:$M$105,0))=0,\"\",INDEX($F106:$M106,MATCH(F$117,$F$105:$M$105,0))),\"\")","v":""},{"$f":"IFERROR(IF(INDEX($F106:$M106,MATCH(G$117,$F$105:$M$105,0))=0,\"\",INDEX($F106:$M106,MATCH(G$117,$F$105:$M$105,0))),\"\")","v":""},"","","","","","",{"$f":"IFERROR(IF(INDEX($F106:$M106,MATCH(N$117,$F$105:$M$105,0))=0,\"\",INDEX($F106:$M106,MATCH(N$117,$F$105:$M$105,0))),\"\")","v":""},"","","","","","",{"$f":"IFERROR(IF(INDEX($F106:$M106,MATCH(U$117,$F$105:$M$105,0))=0,\"\",INDEX($F106:$M106,MATCH(U$117,$F$105:$M$105,0))),\"\")","v":""},"","","",{"$f":"IFERROR(IF(INDEX($F106:$M106,MATCH(Y$117,$F$105:$M$105,0))=0,\"\",INDEX($F106:$M106,MATCH(Y$117,$F$105:$M$105,0))),\"\")","v":""},""]
[null,null,{"$f":"IF('2 Specifikation'!C53=\"\",\"\",'2 Specifikation'!B53&\" - \"&'2 Specifikation'!C53)","v":""},null,{"$f":"IFERROR(IF(INDEX($F107:$M107,MATCH(E$117,$F$105:$M$105,0))=0,\"\",INDEX($F107:$M107,MATCH(E$117,$F$105:$M$105,0))),\"\")","v":""},{"$f":"IFERROR(IF(INDEX($F107:$M107,MATCH(F$117,$F$105:$M$105,0))=0,\"\",INDEX($F107:$M107,MATCH(F$117,$F$105:$M$105,0))),\"\")","v":""},"","","","","",{"$f":"IFERROR(IF(INDEX($F107:$M107,MATCH(L$117,$F$105:$M$105,0))=0,\"\",INDEX($F107:$M107,MATCH(L$117,$F$105:$M$105,0))),\"\")","v":""},{"$f":"IFERROR(IF(INDEX($F107:$M107,MATCH(M$117,$F$105:$M$105,0))=0,\"\",INDEX($F107:$M107,MATCH(M$117,$F$105:$M$105,0))),\"\")","v":""},{"$f":"IFERROR(IF(INDEX($F107:$M107,MATCH(N$117,$F$105:$M$105,0))=0,\"\",INDEX($F107:$M107,MATCH(N$117,$F$105:$M$105,0))),\"\")","v":""},"","","","","",{"$f":"IFERROR(IF(INDEX($F107:$M107,MATCH(T$117,$F$105:$M$105,0))=0,\"\",INDEX($F107:$M107,MATCH(T$117,$F$105:$M$105,0))),\"\")","v":""},{"$f":"IFERROR(IF(INDEX($F107:$M107,MATCH(U$117,$F$105:$M$105,0))=0,\"\",INDEX($F107:$M107,MATCH(U$117,$F$105:$M$105,0))),\"\")","v":""},"","","",{"$f":"IFERROR(IF(INDEX($F107:$M107,MATCH(Y$117,$F$105:$M$105,0))=0,\"\",INDEX($F107:$M107,MATCH(Y$117,$F$105:$M$105,0))),\"\")","v":""},""]
[null,null,{"$f":"IF('2 Specifikation'!C54=\"\",\"\",'2 Specifikation'!B54&\" - \"&'2 Specifikation'!C54)","v":""},null,"","",{"$f":"IFERROR(IF(INDEX($F108:$M108,MATCH(G$117,$F$105:$M$105,0))=0,\"\",INDEX($F108:$M108,MATCH(G$117,$F$105:$M$105,0))),\"\")","v":""},"","","","","","",{"$f":"IFERROR(IF(INDEX($F108:$M108,MATCH(N$117,$F$105:$M$105,0))=0,\"\",INDEX($F108:$M108,MATCH(N$117,$F$105:$M$105,0))),\"\")","v":""},"","","","","","",{"$f":"IFERROR(IF(INDEX($F108:$M108,MATCH(U$117,$F$105:$M$105,0))=0,\"\",INDEX($F108:$M108,MATCH(U$117,$F$105:$M$105,0))),\"\")","v":""},"","","",{"$f":"IFERROR(IF(INDEX($F108:$M108,MATCH(Y$117,$F$105:$M$105,0))=0,\"\",INDEX($F108:$M108,MATCH(Y$117,$F$105:$M$105,0))),\"\")","v":""},""]
[null,null,{"$f":"IF('2 Specifikation'!C55=\"\",\"\",'2 Specifikation'!B55&\" - \"&'2 Specifikation'!C55)","v":""},null,"","","","","","","","","",{"$f":"IFERROR(IF(INDEX($F109:$M109,MATCH(N$117,$F$105:$M$105,0))=0,\"\",INDEX($F109:$M109,MATCH(N$117,$F$105:$M$105,0))),\"\")","v":""},"","","","","","",{"$f":"IFERROR(IF(INDEX($F109:$M109,MATCH(U$117,$F$105:$M$105,0))=0,\"\",INDEX($F109:$M109,MATCH(U$117,$F$105:$M$105,0))),\"\")","v":""},"","","",{"$f":"IFERROR(IF(INDEX($F109:$M109,MATCH(Y$117,$F$105:$M$105,0))=0,\"\",INDEX($F109:$M109,MATCH(Y$117,$F$105:$M$105,0))),\"\")","v":""},""]
[null,null,{"$f":"IF('2 Specifikation'!C56=\"\",\"\",'2 Specifikation'!B56&\" - \"&'2 Specifikation'!C56)","v":""},null,"","","","","","","","","",{"$f":"IFERROR(IF(INDEX($F110:$M110,MATCH(N$117,$F$105:$M$105,0))=0,\"\",INDEX($F110:$M110,MATCH(N$117,$F$105:$M$105,0))),\"\")","v":""},"","","","","","",{"$f":"IFERROR(IF(INDEX($F110:$M110,MATCH(U$117,$F$105:$M$105,0))=0,\"\",INDEX($F110:$M110,MATCH(U$117,$F$105:$M$105,0))),\"\")","v":""},"","","",{"$f":"IFERROR(IF(INDEX($F110:$M110,MATCH(Y$117,$F$105:$M$105,0))=0,\"\",INDEX($F110:$M110,MATCH(Y$117,$F$105:$M$105,0))),\"\")","v":""},""]
[null,null,{"$f":"IF('2 Specifikation'!C57=\"\",\"\",'2 Specifikation'!B57&\" - \"&'2 Specifikation'!C57)","v":""},null,"","","","","","","","","",{"$f":"IFERROR(IF(INDEX($F111:$M111,MATCH(N$117,$F$105:$M$105,0))=0,\"\",INDEX($F111:$M111,MATCH(N$117,$F$105:$M$105,0))),\"\")","v":""},"","","","","","",{"$f":"IFERROR(IF(INDEX($F111:$M111,MATCH(U$117,$F$105:$M$105,0))=0,\"\",INDEX($F111:$M111,MATCH(U$117,$F$105:$M$105,0))),\"\")","v":""},"","","",{"$f":"IFERROR(IF(INDEX($F111:$M111,MATCH(Y$117,$F$105:$M$105,0))=0,\"\",INDEX($F111:$M111,MATCH(Y$117,$F$105:$M$105,0))),\"\")","v":""},""]
[null,null,{"$f":"IF('2 Specifikation'!C58=\"\",\"\",'2 Specifikation'!B58&\" - \"&'2 Specifikation'!C58)","v":""},null,"","","","","","","","","",{"$f":"IFERROR(IF(INDEX($F112:$M112,MATCH(N$117,$F$105:$M$105,0))=0,\"\",INDEX($F112:$M112,MATCH(N$117,$F$105:$M$105,0))),\"\")","v":""},"","","","","","",{"$f":"IFERROR(IF(INDEX($F112:$M112,MATCH(U$117,$F$105:$M$105,0))=0,\"\",INDEX($F112:$M112,MATCH(U$117,$F$105:$M$105,0))),\"\")","v":""},"","","",{"$f":"IFERROR(IF(INDEX($F112:$M112,MATCH(Y$117,$F$105:$M$105,0))=0,\"\",INDEX($F112:$M112,MATCH(Y$117,$F$105:$M$105,0))),\"\")","v":""},""]
[null,null,{"$f":"IF('2 Specifikation'!C59=\"\",\"\",'2 Specifikation'!B59&\" - \"&'2 Specifikation'!C59)","v":""},null,{"$f":"IFERROR(IF(INDEX($F113:$M113,MATCH(E$117,$F$105:$M$105,0))=0,\"\",INDEX($F113:$M113,MATCH(E$117,$F$105:$M$105,0))),\"\")","v":""},{"$f":"IFERROR(IF(INDEX($F113:$M113,MATCH(F$117,$F$105:$M$105,0))=0,\"\",INDEX($F113:$M113,MATCH(F$117,$F$105:$M$105,0))),\"\")","v":""},"","","","","","","",{"$f":"IFERROR(IF(INDEX($F113:$M113,MATCH(N$117,$F$105:$M$105,0))=0,\"\",INDEX($F113:$M113,MATCH(N$117,$F$105:$M$105,0))),\"\")","v":""},"","","","","","",{"$f":"IFERROR(IF(INDEX($F113:$M113,MATCH(U$117,$F$105:$M$105,0))=0,\"\",INDEX($F113:$M113,MATCH(U$117,$F$105:$M$105,0))),\"\")","v":""},"","","",{"$f":"IFERROR(IF(INDEX($F113:$M113,MATCH(Y$117,$F$105:$M$105,0))=0,\"\",INDEX($F113:$M113,MATCH(Y$117,$F$105:$M$105,0))),\"\")","v":""},""]
[null,null,{"$f":"IF('2 Specifikation'!C60=\"\",\"\",'2 Specifikation'!B60&\" - \"&'2 Specifikation'!C60)","v":""},null,{"$f":"IFERROR(IF(INDEX($F114:$M114,MATCH(E$117,$F$105:$M$105,0))=0,\"\",INDEX($F114:$M114,MATCH(E$117,$F$105:$M$105,0))),\"\")","v":""},{"$f":"IFERROR(IF(INDEX($F114:$M114,MATCH(F$117,$F$105:$M$105,0))=0,\"\",INDEX($F114:$M114,MATCH(F$117,$F$105:$M$105,0))),\"\")","v":""},"","","","","","","",{"$f":"IFERROR(IF(INDEX($F114:$M114,MATCH(N$117,$F$105:$M$105,0))=0,\"\",INDEX($F114:$M114,MATCH(N$117,$F$105:$M$105,0))),\"\")","v":""},"","","","","","",{"$f":"IFERROR(IF(INDEX($F114:$M114,MATCH(U$117,$F$105:$M$105,0))=0,\"\",INDEX($F114:$M114,MATCH(U$117,$F$105:$M$105,0))),\"\")","v":""},"","","",{"$f":"IFERROR(IF(INDEX($F114:$M114,MATCH(Y$117,$F$105:$M$105,0))=0,\"\",INDEX($F114:$M114,MATCH(Y$117,$F$105:$M$105,0))),\"\")","v":""},""]
[null,null,{"$f":"IF('2 Specifikation'!C61=\"\",\"\",'2 Specifikation'!B61&\" - \"&'2 Specifikation'!C61)","v":""},null,{"$f":"IFERROR(IF(INDEX($F115:$M115,MATCH(E$117,$F$105:$M$105,0))=0,\"\",INDEX($F115:$M115,MATCH(E$117,$F$105:$M$105,0))),\"\")","v":""},"","","","","","","","",{"$f":"IFERROR(IF(INDEX($F115:$M115,MATCH(N$117,$F$105:$M$105,0))=0,\"\",INDEX($F115:$M115,MATCH(N$117,$F$105:$M$105,0))),\"\")","v":""},"","","","","","",{"$f":"IFERROR(IF(INDEX($F115:$M115,MATCH(U$117,$F$105:$M$105,0))=0,\"\",INDEX($F115:$M115,MATCH(U$117,$F$105:$M$105,0))),\"\")","v":""},"","","",{"$f":"IFERROR(IF(INDEX($F115:$M115,MATCH(Y$117,$F$105:$M$105,0))=0,\"\",INDEX($F115:$M115,MATCH(Y$117,$F$105:$M$105,0))),\"\")","v":""},""]

{"sheet":"SysAdmin","index":4,"n_rows":9,"n_cols":5,"rows_kept":9,"cut":false,"hidden":true,"merged":[]}
["LockStatus",false]
["UKey","Förvaltning21",null,2,{"$f":"INDEX(E3:E5,D2)","v":"Avroppsblanketten är nu upplåst, klicka här för att låsa avropsblanketten."}]
["pkey","Förvaltning21",null,null,"Adminläge! Klicka här för att låsa vita celler."]
["Wkey","Förvaltning21","RGB",null,"Avroppsblanketten är nu upplåst, klicka här för att låsa avropsblanketten."]
["YColor"," ","255, 255, 153",null,"Avroppsblanketten är nu låst, klicka här för att låsa upp avropsblanketten."]
[null,null,"204, 255, 255"]
[null,null,"150, 150, 150"]
[null,null,"204, 255, 204"]
[null,null,"250, 191, 143"]